Cogmind - Beta 13 @@@ ROGUE MODE // 2024.04.27 @ 13:01:13 Player: Jason Result: Destroyed by D-53 Grenadier with Mini Grenade Launcher Performance ------------- Evolutions (0) 0 Regions Visited (2) 400 Robots Destroyed (6) 30 Value Destroyed (172) 172 Prototype IDs (0) 0 Alien Tech Used (0) 0 Bonus (0) 0 TOTAL SCORE: 602 Bonus ------- None Cogmind --------- Core Integrity 0/250 Matter 300/300 Energy 98/100 System Corruption 0% Temperature Cool (0) Movement Core (50) Location -10/Mines Parts ------- > --- POWER (1) -------- (None) > --- PROPULSION (2) --- (None) > --- UTILITY (2) ------ (None) > --- WEAPON (2) ------- (None) > --- INVENTORY (5) ---- Aluminum Leg Machine Analyzer Hardened Medium Armor Plating Improved Light Armor Plating Axe Peak State ------------ > --- POWER ------------ Light Ion Engine > --- PROPULSION ------- Light Treads Light Treads > --- UTILITY ---------- Small Storage Unit Seismic Detector > --- WEAPON ----------- Assault Cannon Flak Cannon > --- INVENTORY -------- Aluminum Leg Aluminum Leg Cryofiber Web Machine Analyzer Improved Terrain Scanner Hardened Medium Armor Plating Improved Light Armor Plating Axe [Rating: 13] Favorites ----------- Power Light Ion Engine Engine Light Ion Engine Propulsion Light Treads Treads Light Treads Utility Small Storage Unit Device Seismic Detector Storage Small Storage Unit Weapon Medium Laser Energy Gun Medium Laser Ballistic Gun Light Assault Rifle Ballistic Cannon Flak Cannon Build | -11 -10 -10 ------- Run | Yrd Mat Min Slots Evolved . | . . . Power . | . . . Propulsion . | . . . Utility . | . . . Weapon . | . . . Parts Attached 10 | 7 . 3 Power 2 | 1 . 1 Engine 2 | 1 . 1 Core . | . . . Reactor . | . . . Propulsion 2 | 2 . . Treads 2 | 2 . . Leg . | . . . Wheel . | . . . Hover . | . . . Flight . | . . . Utility 2 | 2 . . Device 1 | 1 . . Storage 1 | 1 . . Processor . | . . . Hackware . | . . . Protection . | . . . Artifact . | . . . Weapon 4 | 2 . 2 Energy Gun 1 | 1 . . Energy Cannon . | . . . Ballistic Gun 1 | 1 . . Ballistic Cannon 2 | . . 2 Launcher . | . . . Special Weapon . | . . . Impact Weapon . | . . . Slashing Weapon . | . . . Piercing Weapon . | . . . Special Melee Weapon . | . . . Unidentified Prototypes . | . . . Parts Lost 3 | . . 3 Power 2 | . . 2 Propulsion 1 | . . 1 Utility . | . . . Weapon . | . . . Highest Loss Streak 2 | . . 2 To Critical Strikes . | . . . Average Slot Usage (%) 99 | . 100 99 Engine 13 | . 14 13 Treads 28 | . 28 28 Device 14 | . 14 14 Storage 14 | . 14 14 Energy Gun 6 | . 14 4 Ballistic Gun 6 | . 14 4 Ballistic Cannon 15 | . . 19 Naked Turns 1 | . . 1 Heaviest Build 20 | 12 12 20 Greatest Support 40 | 40 40 40 Greatest Overweight (x) . | . . . Average Overweight (x) . | . . . Largest Inventory Capacity 8 | 8 8 8 Average Capacity 7 | 7 8 7 Most Carried 8 | 4 4 8 Average Carried 5 | 1 4 6 Final Capacity 8 | 8 8 5 Final Carried 5 | 4 4 5 Class Distribution -------------------- 100% | Mutant Dominant Class ---------------- Mutant | -10/Materials Mutant | -10/Mines Resources | -11 -10 -10 ----------- Run | Yrd Mat Min Matter Collected 374 | 193 . 181 Remotely . | . . . Salvage Created 113 | . 10 103 Parts 11 | 3 2 6 Haulers Intercepted . | . . . Recyclers Shooed . | . . . Parts Field Recycled . | . . . Retrieved Matter . | . . . Parts Self-Destructed . | . . . Prevented . | . . . Kills | -11 -10 -10 ------- Run | Yrd Mat Min Combat Hostiles Destroyed 4 | . . 4 Cannons 4 | . . 4 Classes Destroyed 3 | 1 1 1 Tunneler 1 | 1 . . Operator 1 | . 1 . Grunt 4 | . . 4 Best Kill Streak 3 | 1 1 3 Combat Bots Only 3 | . . 3 Max Kills in Single Turn 1 | 1 1 1 Gunslinging . | . . . Exploded . | . . . Melee . | . . . Uniques/NPCs Destroyed . | . . . Combat | -11 -10 -10 -------- Run | Yrd Mat Min Hostile Shots Fired 47 | . 24 23 Missed 10 | . 6 4 Damage Taken 728 | . 227 501 Core 253 | . 60 193 Absorbed by Shields . | . . . Core Remaining (%) 100 | 100 . . Volleys Fired 11 | . 4 7 Largest 2 | . 2 2 Hottest 88 | . 70 88 Shots Fired 22 | . 8 14 Gun 8 | . 8 . Cannon 14 | . . 14 Launcher . | . . . Special . | . . . Kinetic 18 | . 4 14 Thermal 4 | . 4 . Explosive . | . . . Electromagnetic . | . . . Robot Hit Streak 4 | . 3 4 Robot Miss Streak 6 | . 1 6 Penetration Max . | . . . Secondary Targets . | . . . Shots Hit Robots 16 | . 4 12 Core Hits 14 | . 3 11 Critical Kills . | . . . Critical Parts Destroyed . | . . . Critical Strikes 1 | . 1 . Burn 1 | . 1 . Melee Attacks . | . . . Impact . | . . . Slashing . | . . . Piercing . | . . . Sneak Attacks . | . . . Combat Hostiles . | . . . Follow-up Attacks . | . . . Damage Inflicted 308 | 10 47 251 Guns 47 | . 47 . Cannons 251 | . . 251 Explosions . | . . . Melee . | . . . Ramming 10 | 10 . . Kinetic 260 | . 9 251 Thermal 38 | . 38 . Explosive . | . . . Electromagnetic . | . . . Impact . | . . . Slashing . | . . . Piercing . | . . . Highest Corruption . | . . . Average Corruption . | . . . Corruption Purged . | . . . Corruption Blocked . | . . . Overload Shots . | . . . Overflow Damage . | . . . Projectiles . | . . . Explosions . | . . . Melee . | . . . Knockbacks 5 | . . 5 Impact . | . . . Kinetic 5 | . . 5 Secondary . | . . . Self-Inflicted Damage . | . . . Shots . | . . . Rammed 1 | 1 . . Targets Rammed 2 | 2 . . Kicked . | . . . Crushed 1 | 1 . . Highest Temperature 157 | . 40 157 Average Temperature 57 | . 19 72 Received Heat Transfer 189 | . 129 60 Siege Activations . | . . . Robots Corrupted . | . . . Combat Hostiles . | . . . Parts Fried . | . . . Impact Corruptions . | . . . Robots Melted . | . . . Combat Hostiles . | . . . Parts Melted . | . . . Heat Transferred 185 | . 185 . Parts Sabotaged . | . . . Parts Stolen . | . . . Parts Stripped . | . . . Power Chain Reactions . | . . . Alert | -11 -10 -10 ------- Run | Yrd Mat Min Peak Influence 127 | 5 53 127 Initial 20 | . 3 20 Average 61 | 1 37 86 Maximum Alert Level . | . . . Low Security (%) 100 | 100 100 100 Level 1 . | . . . Level 2 . | . . . Level 3 . | . . . Level 4 . | . . . Level 5 . | . . . High Security . | . . . Max Security . | . . . Squads Dispatched 3 | . 2 1 Investigation 1 | . . 1 Extermination . | . . . Reinforcement 2 | . 2 . Assault . | . . . Garrison . | . . . Intercept . | . . . Searches Triggered . | . . . Construction Impeded . | . . . Haulers Reinforced . | . . . Active Scanning Responses . | . . . Cargo Convoy Interrupts . | . . . Stealth | -11 -10 -10 --------- Run | Yrd Mat Min Distress Signals 1 | . 1 . Communications Jammed . | . . . Distress Signals . | . . . Times Spotted 29 | . 8 21 Peak Tracking Total 19 | . 7 19 Tactical Retreats . | . . . Traps | -11 -10 -10 ------- Run | Yrd Mat Min Traps Triggered . | . . . Indirectly . | . . . Trap Hack Attempts . | . . . Triggered . | . . . Disarmed . | . . . Reprogrammed . | . . . Reused . | . . . Traps Extracted . | . . . Installed . | . . . Triggered . | . . . Machines | -11 -10 -10 ---------- Run | Yrd Mat Min Machines Disabled . | . . . Max in Single Turn . | . . . Machines Repaired . | . . . Machines Dismantled . | . . . Machines Sabotaged . | . . . Overloaded Fab Kills . | . . . Hacking | -11 -10 -10 --------- Run | Yrd Mat Min Machines Accessed 1 | . . 1 Terminals . | . . . Fabricators . | . . . Repair Stations . | . . . Recycling Units . | . . . Scanalyzers . | . . . Garrison Access . | . . . Total Hacks 1 | . . 1 Successful 1 | . . 1 Failed . | . . . Catastrophic . | . . . Database Lockouts . | . . . Manual . | . . . Terminals . | . . . Fabricators . | . . . Repair Stations . | . . . Recycling Units . | . . . Scanalyzers . | . . . Garrison Access . | . . . Terminal Hacks 1 | . . 1 Open Door 1 | . . 1 Fabricator Hacks . | . . . Repair Station Hacks . | . . . Recycling Unit Hacks . | . . . Scanalyzer . | . . . Garrison Access Hacks . | . . . Unauthorized Hacks . | . . . Terminals . | . . . Fabricators . | . . . Repair Stations . | . . . Recycling Units . | . . . Scanalyzers . | . . . Garrison Access . | . . . Data Cores Recovered . | . . . Used . | . . . Hacking Detections . | . . . Full Trace Events . | . . . Feedback Events . | . . . Feedback Blocked . | . . . Robot Schematics Acquired . | . . . Robots Built . | . . . Authchips . | . . . Time . | . . . Total Robot Build Rating . | . . . Part Schematics Acquired . | . . . Parts Built . | . . . Authchips . | . . . Time . | . . . Total Part Build Rating . | . . . Parts Repaired . | . . . Time . | . . . Parts Recycled . | . . . Recycled Matter . | . . . Retrieved Matter . | . . . Retrieved Components . | . . . Parts Scanalyzed . | . . . Part Schematics Acquired . | . . . Parts Damaged . | . . . Bothacking | -11 -10 -10 ------------ Run | Yrd Mat Min Used RIF Installer . | . . . Robots Hacked . | . . . Non-combat . | . . . Combat . | . . . Robot Hacks Applied . | . . . Relay Couplers Released . | . . . Fabnet Peak Effective % . | . . . Robots Rewired . | . . . Allies Hacked . | . . . Hacks Repelled . | . . . Allies | -11 -10 -10 -------- Run | Yrd Mat Min Total Allies . | . . . Largest Group . | . . . Highest-Rated Group . | . . . Highest-Rated Ally . | . . . Total Orders . | . . . Ally Attacks . | . . . Total Damage . | . . . Kills . | . . . Allies Corrupted . | . . . Allies Melted . | . . . Intel | -11 -10 -10 ------- Run | Yrd Mat Min Robot Analysis Total . | . . . Derelict Logs Recovered . | . . . Drone Launches . | . . . Drone Recoveries . | . . . Exploration | -11 -10 -10 ------------- Run | Yrd Mat Min Turns Passed 596 | 123 94 379 Spaces Moved 334 | 74 52 208 Core 14 | 11 . 3 Treads 320 | 63 52 205 Legs . | . . . Wheels . | . . . Hover . | . . . Flight . | . . . Fastest Speed 50 | 50 160 50 Average Speed 155 | 143 160 158 Slowest Speed 160 | 160 160 160 Overloaded Moves . | . . . Propulsion Burnouts . | . . . Robots Hopped . | . . . Cave-ins Triggered . | . . . Exploration Rate (%) 23 | 4 24 41 Regions Visited 2 Branch Regions 1 Pre-discovered Areas . | . . . Known Exits Taken . | . . . Unknown Exits Taken 2 | 1 1 . Scrap Searched . | . . . Spaces Dug . | . . . Terrain Destroyed 2 | . . 2 Melee . | . . . Projectile 2 | . . 2 AOE . | . . . Terrain Rammed . | . . . Walls Destroyed . | . . . Machines Disabled . | . . . Actions | -11 -10 -10 --------- Run | Yrd Mat Min Total 386 | 86 56 244 Wait 18 | . 1 17 Move 332 | 73 51 208 Hop . | . . . Pick Up 10 | 4 . 6 Fast Attach 9 | 7 . 2 Attach 1 | . . 1 Detach . | . . . Swap . | . . . Drop 3 | . . 3 Fire 11 | . 4 7 Melee . | . . . Ram . | . . . Kick . | . . . Crush 2 | 2 . . Escape Stasis . | . . . Rewire . | . . . Trap . | . . . Miscellaneous . | . . . Route ------- -11/Scrapyard -10/Materials -10/Mines (discovered 2 exits: [*Mat x2]) History --------- Turn | Location | Event 5 | -11/Scrapyard | Discovered new exit (range 15) 124 | -11/Scrapyard | Entered Materials 207 | -10/Materials | Discovered new exit (range 8) 218 | -10/Materials | Entered Mines 295 | -10/Mines | Met a Derelict shopkeep closing up shop 315 | -10/Mines | Build established: Mutant 377 | -10/Mines | Discovered new exit (range 11) 488 | -10/Mines | Discovered new exit (range 15) 560 | -10/Mines | Assembled infested the area 565 | -10/Mines | Assisted by a Guerilla fighting off Assembled 574 | -10/Mines | Core integrity fell below 50% 596 | -10/Mines | Core integrity fell below 20% 596 | -10/Mines | Released all parts (5) 597 | -10/Mines | Destroyed by D-53 Grenadier with Mini Grenade Launcher Last Messages --------------- 00578_ as-97975 destroyed. 00580_ The unstable cave ceiling collapses. 00580_ K-01 Serf collects debris. 00580_ U-05 Engineer builds a Wall. 00581_ The unstable cave ceiling collapses. 00584_ U-05 Engineer lays Concrete. 00585_ The unstable cave ceiling collapses. 00585_ U-05 Engineer lays Concrete. 00587_ U-05 Engineer builds a Wall. 00591_ U-05 Engineer lays Concrete. 00593_ The unstable cave ceiling collapses. 00593_ U-05 Engineer lays Concrete. 00594_ Lgt. Treads destroyed. 00595_ U-05 Engineer builds a Wall. 00595_ Lgt. Ion Engine destroyed. 00596_ Released Flak Cannon. 00596_ Released Seismic Detector. 00596_ Released Lgt. Treads. 00596_ Released Sml. Storage Unit. 00596_ Released Assault Cannon. Map ----- +----------------------------------------------------+ | | | ?????????????????????????????????????????????????? | | ?????????????????????????????????????????????????? | | ???????????????????????????????????????????###???? | | ??????????????????????????????????????????## ###?? | | ??????????????????????????????????????????# ##? | | ??????????????????????????????????????????# ## | | ?????????????????#####????????????????????# | | ?????????????##### ##???????????????????# | | ???????????### # ##??????????????????# | | ??????????## # #??????????????????# | | ???????### # #??????????????????# | | ??????# #??????????????????# # | | ??????# ##?????????????????# ## | | % % u #####?????????????# ### | | % # ##????????????# ####" | | ?? #dd #????????????# #??# | | ?#?????????# ### # ## #????????????# #??## | | ???????????????####?# ##????????????# #???# | | ????????????????????# ####???????????### #??## | | ??????????????????### ##?????????????# #??# | | ??????????????????# #####?????????# ####??# | | ??????????????????# # ##????????# #????## | | ??????????????????# ########## #???## | | ??????????????????# < ##### | | ??????????????????# !]! @ ############ | | ?????????????????# ] ] """ ##?????????# | | ?????????????????## """ #??????????# | | ??????????????????## """ #??????????## # | | ???????????????????# # #??????????# # | | ???????????????????##### #?????????# # | | ???????????????????????##### #???????## # | | ???????????????????????????## ????#### ## | | ????????????????????????????# #??## ###? | | ????????????????????????????# ##??# ##??? | | ????????????????????????????# ##???# ##???? | | ????????????????????????????## ##????## #????? | | ??????????????????????????????###??????## #????? | | ????????????????????????????????????????## #????? | | ?????????????????????????????????????????# #????? | | ????????????????????????????????????####?# ###### | | ???????????????????????????????????## ### | | ???????????????????????????????????# ## ###### | | ???????????????????????????????????# # ##??? | | ????????????????????????????????????# ## | | ????????????????????????????????????### | | ??????????????????????????????????????## | | ???????????????????????????????????????## ### | | ????????????????????????????????????????### #??# | | ??????????????????????????????????????????# #???# | +----------------------------------------------------+ Best States ------------- Heat Dissipation 25 Energy Generation 10 Energy Capacity 125 Matter Stores 300 Matter Capacity 300 Sight Range 16 Terrain Scan Density 10 Evasion (%) 50 Recoil Reduction 2 Item Schematics ----------------- None Robot Schematics ------------------ None Fabricated ------------ Nothing Alien Tech Used ----------------- None Achievements -------------- None Challenges ------------ None Game ------ Seed GrapheneCooledNanoactuators Manual? 0 Play Time 00:08:51 Cumulative 35.7 hours Start 2024.04.27 @ 12:55:45 End 2024.04.27 @ 13:01:13 Sessions 1 Manual Loads 0 Difficulty Rogue Special Mode None Game No. 30 Rogue 30 Adventurer 0 Explorer 0 Win Type - Total 0 Types 0/0/0/0/0/0/0/0/0 Lore% 17 Gallery% 26 Achievement% 18 Wizard Run 0 Options --------- Layout 2 ASCII 0 Keyboard 1 Movement Arrows Keybinds 0 Fullscreen 2 Font 24/Smallcaps Map View 50x44 Zoom Use 0% Tactical HUD 1 Map Filters NONE Filters NONE Steam 1 RUN: bf62ad60-b734-460b-863f-55a1d430cbf8